bitfinex-derivatives/quotes_SOLF0:USTF0_20250911
["timestamp","ask_amount","ask_price","bid_price","bid_amount"]
[1757572287102,6.97,223.06,223.04,0.02899595]
[1757572287399,1.65637574,223.07,223.04,0.02899595]
[1757572287795,6.97,223.06,223.04,0.02899595]
[1757572289298,1.65637574,223.07,223.04,0.02899595]
[1757572289504,6.97,223.06,223.04,0.02899595]
[1757572289703,1.65637574,223.07,223.04,0.02899595]
[1757572289899,6.97,223.06,223.04,0.02899595]
[1757572290403,6.97,223.06,222.97,2.05]
[1757572290805,6.97,223.06,223.0,2.08]
[1757572291300,6.97,223.1,223.03,2.08]
[1757572291500,0.0306164,223.05,223.03,2.08]
[1757572292099,0.0306164,223.05,223.02,1.65637574]
[1757572292298,0.0306164,223.05,223.03,2.08]
[1757572292702,0.0306164,223.05,223.02,1.65637574]
[1757572292902,0.0306164,223.05,223.03,2.08]
[1757572293104,0.0306164,223.05,222.98,2.08]
[1757572293302,0.0306164,223.05,223.04,1.65637574]
[1757572293505,0.0306164,223.05,223.04,3.73637574]
[1757572303808,0.0306164,223.05,223.04,2.08]
[1757572304118,7.0006164,223.05,223.02,3.73637574]
[1757572304311,0.0306164,223.05,223.03,2.08]
[1757572307917,0.0306164,223.05,222.98,14.34]
[1757572307918,0.0306164,223.05,223.04,3.73637574]
[1757572308917,0.0306164,223.05,223.04,2.08]
[1757572316718,0.0306164,223.05,223.04,3.73637574]
[1757572317024,0.0306164,223.05,223.04,2.08]
[1757572317222,0.0306164,223.05,223.04,3.73637574]
[1757572317821,2.0,223.11,223.05,2.05]
[1757572318026,2.0,223.11,223.08,2.05]
[1757572318330,2.0,223.11,223.07,1.65637574]
[1757572318529,2.0,223.11,223.06,3.73235304]
[1757572318724,2.0,223.11,223.07,1.65637574]
[1757572319925,2.0,223.11,223.08,2.06]
[1757572320126,2.0,223.11,223.07,1.65637574]
[1757572320523,2.0,223.11,223.08,2.06]
[1757572320934,2.0,223.11,223.07,1.68555237]
[1757572321127,2.0,223.11,223.08,2.06]
[1757572321726,2.0,223.11,223.1,3.71637574]
[1757572321933,2.0,223.11,223.1,91.15637574]
[1757572322830,7.06,223.18,223.11,2.0]
[1757572323029,7.06,223.18,223.11,3.72989136]
[1757572323738,10.02393254,223.4,223.1,91.15637574]
[1757572323739,8.71637574,223.22,223.14,2.06]
[1757572324029,7.06,223.22,223.15,2.06]
[1757572324228,7.06,223.22,223.15,5.78989136]
[1757572326329,7.06,223.22,223.15,2.06]
[1757572334735,7.06,223.3,223.15,2.06]
[1757572335333,7.06,223.3,223.2,0.02856454]
[1757572335538,7.06,223.3,223.2,24.36856454]
[1757572335734,4.58261147,223.31,223.2,24.36856454]
[1757572335940,7.06,223.3,223.2,24.36856454]
[1757572336433,4.58261147,223.31,223.2,24.36856454]
[1757572336640,2.0,223.31,223.2,24.36856454]
[1757572336940,7.06,223.3,223.2,24.36856454]
[1757572337736,2.0,223.31,223.2,24.36856454]
[1757572337938,7.06,223.3,223.21,2.06]
[1757572338849,7.06,223.3,223.22,2.06]
[1757572340152,7.06,223.3,223.24,2.06]
[1757572340749,7.06,223.3,223.23,62.54]
[1757572340750,7.06,223.3,223.25,0.02902984]
[1757572340944,2.0,223.31,223.25,0.02902984]
[1757572341144,2.0,223.31,223.26,2.06]
[1757572342649,2.0,223.31,223.25,0.02902984]
[1757572342850,2.0,223.31,223.26,2.06]
[1757572343144,2.0,223.31,223.25,0.02902984]
[1757572343353,2.0,223.31,223.26,2.06]
[1757572343552,2.0,223.31,223.25,0.02902984]
[1757572344353,2.0,223.31,223.26,2.06]
[1757572344958,2.03292976,223.31,223.25,0.02902984]
[1757572345253,2.03292976,223.31,223.26,2.06]
[1757572345459,2.03292976,223.31,223.27,81.9]
[1757572345754,2.03292976,223.31,223.28,2.06]
[1757572346149,2.03292976,223.31,223.27,81.9]
[1757572346855,2.03292976,223.31,223.28,2.06]
[1757572347054,2.03292976,223.31,223.27,81.9]
[1757572347256,2.03292976,223.31,223.28,2.03]
[1757572348261,2.03292976,223.31,223.27,81.9]
[1757572348462,2.03292976,223.31,223.28,2.03]
[1757572348858,2.03292976,223.31,223.27,81.9]
[1757572349063,2.03292976,223.31,223.28,2.03]
[1757572349264,7.06,223.33,223.28,2.03]
[1757572349464,7.06,223.33,223.27,83.93]
[1757572350159,7.06,223.33,223.27,2.03]
[1757572350367,7.17,223.37,223.25,0.02902984]
[1757572350560,2.58261147,223.38,223.26,15.48]
[1757572350761,7.17,223.37,223.26,15.48]
[1757572350962,7.17,223.37,223.3,0.02856684]
[1757572352272,7.17,223.34,223.3,0.02856684]
[1757572352668,2.58261147,223.35,223.25,17.78]
[1757572352867,7.17,223.34,223.3,0.03144489]
[1757572353670,2.58261147,223.47,223.3,0.03144489]
[1757572353969,7.17,223.37,223.26,2.03]
[1757572354368,7.17,223.37,223.36,0.03008276]
[1757572354569,7.17,223.37,223.3,2.03]
[1757572354762,2.58261147,223.4,223.34,0.03228007]
[1757572355062,7.17,223.39,223.34,0.03228007]
[1757572357375,2.58261147,223.43,223.34,2.06228007]
[1757572357574,7.17,223.42,223.34,2.06228007]
[1757572357877,7.17,223.42,223.34,2.03]
[1757572358073,7.17,223.42,223.36,0.03252079]
[1757572359869,2.58261147,223.6,223.36,2.06252079]
[1757572360067,10.70001756,223.5,223.36,2.06252079]
[1757572360268,7.17,223.5,223.36,2.03]
[1757572360468,7.17,223.5,223.41,0.03086391]
[1757572360670,7.17,223.48,223.41,0.03086391]
[1757572361075,7.17,223.46,223.41,0.03086391]
[1757572363175,7.17,223.47,223.41,0.03086391]
[1757572383494,7.22,223.45,223.41,0.03086391]
[1757572384795,4.58261147,223.51,223.41,0.03086391]
[1757572385094,14.24056439,223.5,223.41,0.03086391]
[1757572385294,7.22,223.48,223.41,0.03086391]
[1757572385495,7.22,223.46,223.41,0.03086391]
[1757572386799,7.22,223.5,223.41,0.03086391]
[1757572386999,7.22,223.48,223.41,0.03086391]
[1757572387192,7.22,223.46,223.41,0.03086391]
[1757572389296,7.22,223.47,223.41,0.03086391]
[1757572389496,7.22,223.45,223.41,0.03086391]
[1757572389796,7.22,223.47,223.41,0.03086391]
[1757572390100,7.22,223.45,223.41,0.03086391]
[1757572390299,7.22,223.46,223.41,0.03086391]
[1757572390501,7.22,223.44,223.41,0.03086391]
[1757572390901,7.22,223.46,223.41,0.03086391]
[1757572391100,7.22,223.44,223.41,0.03086391]
[1757572391403,1.64980508,223.49,223.41,0.03086391]
[1757572391592,7.22,223.47,223.41,0.03086391]
[1757572391795,7.22,223.45,223.41,0.03086391]
[1757572396800,2.0,223.51,223.41,0.03086391]
[1757572397000,14.25100161,223.5,223.41,1.68066899]
[1757572397199,3.56781906,223.49,223.41,1.68066899]
[1757572397400,7.22,223.47,223.41,1.68066899]
[1757572398196,7.22,223.45,223.41,0.03086391]
[1757572398397,7.22,223.48,223.41,0.03086391]
[1757572398595,7.22,223.46,223.41,0.03086391]
[1757572398796,7.22,223.48,223.41,0.03086391]
[1757572399002,3.57151615,223.47,223.41,0.03086391]
[1757572399196,7.22,223.45,223.41,2.08086391]
[1757572400002,1.64980508,223.5,223.41,2.08086391]
[1757572400203,14.26048198,223.49,223.41,2.08086391]
[1757572400402,7.22,223.47,223.41,2.08086391]
[1757572400603,3.57296367,223.46,223.41,2.08086391]
[1757572400804,7.22,223.49,223.41,0.03086391]
[1757572400993,7.22,223.47,223.41,0.03086391]
[1757572401193,3.57442795,223.46,223.41,0.03086391]
[1757572401398,7.22,223.44,223.41,0.03086391]
[1757572401598,7.22,223.49,223.41,0.03086391]
[1757572401798,7.22,223.47,223.41,0.03086391]
[1757572401994,7.22,223.45,223.41,0.03086391]
[1757572402202,3.57660954,223.44,223.41,2.08086391]
[1757572402401,3.57660954,223.43,223.41,2.08086391]
[1757572402603,7.22,223.5,223.41,2.08086391]
[1757572402903,7.22,223.48,223.41,2.08086391]
[1757572403206,7.22,223.46,223.41,0.03086391]
[1757572403395,7.22,223.44,223.41,0.03086391]
[1757572403599,10.79805589,223.43,223.41,0.03086391]
[1757572403796,7.22,223.43,223.41,0.03086391]
[1757572405902,1.64980508,223.5,223.41,0.03086391]
[1757572406206,7.22,223.48,223.41,0.03086391]
[1757572406406,7.22,223.46,223.41,0.03086391]
[1757572406706,7.22,223.44,223.41,0.03086391]
[1757572406905,7.22,223.49,223.41,0.03086391]
[1757572407106,7.22,223.47,223.41,0.03086391]
[1757572407301,6.99777459,223.46,223.41,0.03086391]
[1757572407506,7.27,223.44,223.41,0.03086391]
[1757572407709,7.27,223.42,223.41,0.03086391]
[1757572409211,10.7997343,223.42,223.41,0.03086391]
[1757572411617,14.26815663,223.42,223.41,0.03086391]
[1757572412911,14.26815663,223.42,223.33,3.72989136]
[1757572412912,15.91796171,223.42,223.33,3.72989136]
[1757572413114,7.27,223.38,223.32,3.72989136]
[1757572413320,7.27,223.38,223.3,1.64980508]
[1757572413321,7.27,223.36,223.3,3.72989136]
[1757572414115,7.27,223.38,223.31,0.03380258]
[1757572414321,7.27,223.36,223.31,0.03380258]
[1757572414520,7.27,223.38,223.31,0.03380258]
[1757572414716,3.5261433,223.37,223.31,0.03380258]
[1757572414916,7.27,223.38,223.31,0.03380258]
[1757572415121,3.5261433,223.37,223.31,0.03380258]
[1757572415319,7.27,223.38,223.31,0.03380258]
[1757572415522,7.27,223.36,223.31,0.03380258]
[1757572415711,7.27,223.38,223.31,0.03380258]
[1757572416023,3.52493657,223.37,223.31,0.03380258]
[1757572416322,3.52493657,223.36,223.31,0.03380258]
[1757572416620,7.27,223.38,223.31,0.03380258]
[1757572416815,7.27,223.36,223.31,0.03380258]
[1757572417021,7.27,223.38,223.31,0.03380258]
[1757572417319,3.52337191,223.37,223.31,0.03380258]
[1757572417522,12.44203397,223.36,223.31,0.03380258]
[1757572417721,7.27,223.34,223.31,0.03380258]
[1757572417916,1.64980508,223.33,223.25,113.72989136]
[1757572418215,7.27,223.32,223.3,0.03028112]
[1757572418421,7.27,223.32,223.22,3.72989136]
[1757572418620,7.27,223.32,223.2,3.69980508]
[1757572418621,7.27,223.29,223.2,7.42969644]
[1757572418819,7.27,223.29,223.2,32.23989136]
[1757572419020,1.64980508,223.3,223.2,33.88969644]
[1757572419214,1.64980508,223.3,223.2,30.15980508]
[1757572419411,7.27,223.29,223.2,30.15980508]
[1757572419613,0.03223071,223.27,223.2,30.15980508]
[1757572420218,7.30223071,223.27,223.2,30.15980508]
[1757572421414,7.30223071,223.27,223.2,28.51]
[1757572421622,7.30223071,223.27,223.2,30.15980508]
[1757572422124,7.30223071,223.27,223.2,28.51]
[1757572423222,7.27,223.26,223.2,28.51]
[1757572423726,7.27,223.26,223.2,30.15980508]
[1757572426823,7.27,223.26,223.2,28.51]
[1757572427019,7.27,223.26,223.2,30.15980508]
[1757572427525,7.27,223.26,223.2,28.51]
[1757572427921,7.27,223.26,223.2,30.15980508]
[1757572428320,0.03223071,223.27,223.21,2.08]
[1757572430026,7.30223071,223.27,223.21,2.08]
[1757572432226,7.30223071,223.27,223.21,3.72980508]
[1757572433223,7.30223071,223.27,223.21,2.08]
[1757572441235,7.32,223.26,223.2,110.02]
[1757572442927,7.32,223.26,223.16,300.78]
[1757572443133,7.32,223.26,223.17,111.64980508]
[1757572443330,1.68203579,223.27,223.17,111.64980508]
[1757572443734,7.32,223.26,223.17,111.64980508]
[1757572444032,1.68203579,223.27,223.17,111.64980508]
[1757572444235,1.64980508,223.23,223.16,300.78]
[1757572444436,7.32,223.22,223.16,300.78]
[1757572444935,7.32,223.2,223.16,302.87]
[1757572445239,7.32,223.2,223.16,2.09]
[1757572445435,77.56663961,223.33,223.16,2.09]
[1757572445436,7.32,223.32,223.16,2.09]
[1757572445636,7.32,223.28,223.18,2.09]
[1757572445834,7.32,223.28,223.22,0.03043902]
[1757572446738,8.96980508,223.28,223.22,0.03043902]
[1757572447634,1.64980508,223.25,223.22,0.03043902]
[1757572447833,7.32,223.24,223.22,0.03043902]
[1757572448935,7.32,223.24,223.11,2.09]
[1757572449133,7.32,223.21,223.11,2.09]
[1757572449434,7.32,223.21,223.1,2.06180946]
[1757572449634,7.32,223.17,223.1,2.06180946]
[1757572450330,0.03047759,223.16,223.1,2.06180946]
[1757572452642,0.03047759,223.16,223.1,4.15180946]
[1757572455045,7.32,223.15,223.1,2.06180946]
[1757572455242,0.03047759,223.16,223.1,2.06180946]
[1757572455547,7.32,223.15,223.1,2.06180946]
[1757572455744,0.03047759,223.16,223.1,2.06180946]
[1757572460347,0.03047759,223.16,223.11,2.09]
[1757572461150,0.03047759,223.16,223.11,2.58349823]
[1757572461453,0.03047759,223.16,223.12,2.09]
[1757572463548,7.32,223.25,223.12,2.09]
[1757572463855,3.46761939,223.24,223.12,2.12015986]
[1757572464051,7.32,223.23,223.12,2.12015986]
[1757572464455,7.32,223.23,223.12,2.09]
[1757572464951,7.32,223.23,223.16,2.09]
[1757572468858,10.13349823,223.32,223.16,2.09]
[1757572469053,7.55,223.3,223.16,2.09]
[1757572469359,7.55,223.28,223.16,2.09]
[1757572469558,3.44057634,223.27,223.16,2.09]
[1757572469955,7.55,223.28,223.16,2.09]
[1757572473854,10.13349823,223.28,223.15,38.5]
[1757572474163,7.55,223.27,223.15,38.5]
[1757572474355,2.58349823,223.28,223.15,38.5]
[1757572475058,7.55,223.27,223.15,38.5]
[1757572475254,3.44243266,223.26,223.13,2.08]
[1757572475461,7.55,223.25,223.13,2.08]
[1757572477057,7.55,223.23,223.13,2.08]
[1757572477755,7.55,223.23,223.1,5.77090567]
[1757572477962,7.55,223.19,223.1,4.14180946]
[1757572490574,7.55,223.19,223.1,2.06180946]
[1757572490870,7.55,223.17,223.1,2.06180946]
[1757572492174,3.45024961,223.16,223.1,2.06180946]
[1757572492370,7.55,223.19,223.1,2.06180946]
[1757572492676,7.55,223.17,223.1,2.06180946]
[1757572492977,7.55,223.15,223.1,2.06180946]
[1757572493176,7.55,223.19,223.1,2.06180946]
[1757572493378,7.55,223.17,223.1,2.06180946]
[1757572493578,7.55,223.15,223.1,2.06180946]
[1757572493773,7.55,223.19,223.1,2.06180946]
[1757572494079,7.55,223.17,223.1,2.06180946]
[1757572496475,3.47206129,223.16,223.1,2.06180946]
[1757572496776,7.55,223.19,223.1,2.06180946]
[1757572496978,7.55,223.17,223.1,2.06180946]
[1757572497275,7.49,223.15,223.1,2.06180946]
[1757572497479,7.49,223.19,223.1,2.06180946]
[1757572497676,7.49,223.17,223.1,2.06180946]
[1757572497878,7.49,223.15,223.1,2.06180946]
[1757572498086,7.49,223.18,223.1,2.06180946]
[1757572498286,7.49,223.16,223.1,2.06180946]
[1757572501487,7.49,223.16,223.1,4.14180946]
[1757572501789,2.58349823,223.24,223.11,2.08]
[1757572501979,7.49,223.22,223.11,2.08]
[1757572502184,7.49,223.2,223.11,2.08]
[1757572502381,3.47122445,223.19,223.11,2.08]
[1757572502690,0.03422395,223.18,223.13,0.03308164]
[1757572502993,7.52422395,223.18,223.14,2.08]
[1757572503186,0.03422395,223.18,223.14,2.08]
[1757572503388,0.03422395,223.18,223.13,0.03308164]
[1757572503888,0.03422395,223.18,223.14,2.08]
[1757572504089,0.03422395,223.18,223.13,0.03308164]
[1757572504492,0.03422395,223.18,223.14,2.08]
[1757572504893,0.03422395,223.18,223.13,0.03308164]
[1757572505094,0.03422395,223.18,223.14,2.08]
[1757572505394,0.03422395,223.18,223.13,0.03308164]
[1757572505795,0.03422395,223.18,223.14,2.08]
[1757572506288,0.03422395,223.18,223.13,0.03308164]
[1757572506695,0.03422395,223.18,223.14,2.08]
[1757572507094,0.03422395,223.18,223.13,0.03308164]
[1757572507999,7.49,223.17,223.13,0.03308164]
[1757572508697,9.17848858,223.18,223.14,2.08]
[1757572508899,7.52422395,223.18,223.14,2.08]
[1757572509197,0.03422395,223.18,223.13,0.03308164]
[1757572509495,0.03422395,223.18,223.14,2.08]
[1757572509691,7.49,223.17,223.13,0.03308164]
[1757572510487,0.03422395,223.18,223.13,0.03308164]
[1757572510692,0.03422395,223.18,223.15,1.65426463]
[1757572510891,0.03422395,223.18,223.13,0.03308164]
[1757572511192,0.03422395,223.18,223.14,1.65426463]
[1757572511794,0.03422395,223.18,223.15,2.08]
[1757572511998,0.03422395,223.18,223.14,1.65426463]
[1757572512699,0.03422395,223.18,223.15,2.08]
[1757572513098,0.03422395,223.18,223.14,1.65426463]
[1757572513800,0.03422395,223.18,223.15,2.08]
[1757572514000,0.03422395,223.18,223.17,3.73426463]
[1757572514604,0.03422395,223.18,223.17,2.08]
[1757572514807,0.03422395,223.18,223.13,64.08853698]
[1757572514998,0.03422395,223.18,223.14,2.08]
[1757572515299,0.03422395,223.18,223.16,2.08]
[1757572516001,0.03422395,223.18,223.15,1.65426463]
[1757572516393,0.03422395,223.18,223.15,2.08]
[1757572516598,0.03422395,223.18,223.15,3.73426463]
[1757572516798,0.03422395,223.18,223.16,2.08]
[1757572518107,0.03422395,223.18,223.15,1.65426463]
[1757572518405,0.03422395,223.18,223.16,2.08]
[1757572518800,0.03422395,223.18,223.15,1.65426463]
[1757572519407,0.03422395,223.18,223.16,2.08]
[1757572520697,0.03422395,223.18,223.15,1.65426463]
[1757572521295,0.03422395,223.18,223.16,2.08]
[1757572521494,0.03422395,223.18,223.15,2.08]
[1757572521698,0.03422395,223.18,223.14,3.71545534]
[1757572521900,0.03422395,223.18,223.15,2.08]
[1757572522306,0.03422395,223.18,223.14,3.71545534]
[1757572522504,0.03422395,223.18,223.15,2.08]
[1757572522705,0.03422395,223.18,223.13,0.03308164]
[1757572523009,7.49,223.16,223.13,0.03308164]
[1757572523205,7.49,223.17,223.13,0.03308164]
[1757572523397,9.14426463,223.14,223.13,0.03308164]
[1757572531009,0.03422395,223.18,223.14,2.09]
[1757572531209,0.03422395,223.18,223.13,0.03308164]
[1757572532010,0.03422395,223.18,223.14,2.09]
[1757572532211,0.03422395,223.18,223.13,0.03308164]
[1757572532403,0.03422395,223.18,223.14,2.09]
[1757572532807,0.03422395,223.18,223.13,0.03308164]
[1757572533208,0.03422395,223.18,223.14,2.09]
[1757572533715,0.03422395,223.18,223.13,0.03308164]
[1757572534009,0.03422395,223.18,223.14,2.09]
[1757572534312,0.03422395,223.18,223.13,0.03308164]
[1757572535507,0.03422395,223.18,223.14,2.09]
[1757572536206,0.03422395,223.18,223.13,0.03308164]
[1757572537514,0.03422395,223.18,223.14,2.09]
[1757572537711,0.03422395,223.18,223.13,0.03308164]
[1757572538010,0.03422395,223.18,223.14,2.09]
[1757572538209,0.03422395,223.18,223.13,3.74853698]
[1757572538808,0.03422395,223.18,223.14,2.09]
[1757572539018,0.03422395,223.18,223.15,2.09]
[1757572539311,0.03422395,223.18,223.17,3.74426463]
[1757572539515,7.18,223.29,223.18,2.06]
[1757572539712,7.18,223.29,223.2,1.65426463]
[1757572540417,7.18,223.29,223.21,2.06]
[1757572540804,7.18,223.29,223.23,0.03409305]
[1757572542914,7.18,223.29,223.24,2.06]
[1757572543219,7.18,223.29,223.23,0.03409305]
[1757572543518,7.18,223.29,223.23,2.09409305]
[1757572552623,7.18,223.29,223.23,0.03409305]
[1757572553622,8.83426463,223.29,223.23,0.03409305]
[1757572555033,7.18,223.29,223.23,0.03409305]
[1757572555222,8.83426463,223.29,223.23,0.03409305]
[1757572558333,7.18,223.29,223.23,0.03409305]
[1757572558544,7.18,223.29,223.23,2.09409305]
[1757572559440,7.18,223.29,223.25,2.06]
[1757572559640,7.16,223.32,223.24,1.65426463]
[1757572561839,7.16,223.32,223.25,2.06]
[1757572565745,8.81426463,223.32,223.23,0.03409305]
[1757572566243,8.81426463,223.32,223.23,1.68835768]
[1757572568445,7.16,223.32,223.23,0.03409305]
[1757572574147,7.16,223.3,223.23,0.03409305]
[1757572579043,7.16,223.28,223.23,0.03409305]
[1757572581054,7.16,223.32,223.23,0.03409305]
[1757572581249,7.16,223.3,223.23,0.03409305]
[1757572581545,10.65147762,223.29,223.23,2.09409305]
[1757572581750,7.16,223.29,223.23,2.09409305]
[1757572584250,7.16,223.27,223.23,2.09409305]
[1757572584552,7.16,223.35,223.23,2.09409305]
[1757572584754,7.16,223.33,223.23,2.09409305]
[1757572584943,7.16,223.31,223.23,0.03409305]
[1757572585147,7.16,223.29,223.23,0.03409305]
[1757572585445,7.16,223.27,223.23,0.03409305]
[1757572585650,7.16,223.35,223.23,0.03409305]
[1757572585849,7.16,223.33,223.23,0.03409305]
[1757572586048,7.16,223.31,223.23,0.03409305]
[1757572586251,7.16,223.29,223.23,0.03409305]
[1757572586449,7.16,223.27,223.23,0.03409305]
[1757572586751,3.50375033,223.26,223.23,0.03409305]
[1757572586947,7.16,223.31,223.23,0.03409305]
[1757572587148,7.27,223.29,223.23,0.03409305]
[1757572587349,3.50375033,223.28,223.23,0.03409305]
[1757572587555,3.50375033,223.27,223.23,0.03409305]
[1757572587846,7.27,223.31,223.23,0.03409305]
[1757572588050,7.27,223.29,223.23,0.03409305]
[1757572588252,7.27,223.27,223.23,0.03409305]
[1757572588452,7.27,223.31,223.23,0.03409305]
[1757572588654,7.27,223.29,223.23,0.03409305]
[1757572588953,3.50352243,223.28,223.23,0.03409305]
[1757572589154,7.27,223.26,223.23,0.03409305]
[1757572589355,7.27,223.31,223.23,0.03409305]
[1757572589556,7.27,223.29,223.23,0.03409305]
[1757572589755,7.27,223.27,223.23,0.03409305]
[1757572590057,7.27,223.31,223.23,0.03409305]
[1757572590354,7.27,223.29,223.23,0.03409305]
[1757572590557,7.27,223.27,223.23,0.03409305]
[1757572590755,7.27,223.31,223.23,0.03409305]
[1757572590957,7.27,223.29,223.23,0.03409305]
[1757572591249,3.50323933,223.28,223.23,0.03409305]
[1757572591457,3.50323933,223.27,223.23,0.03409305]
[1757572591650,7.27,223.32,223.23,0.03409305]
[1757572591851,7.27,223.3,223.23,0.03409305]
[1757572592050,2.5811024,223.33,223.23,0.03409305]
[1757572592051,7.27,223.28,223.23,0.03409305]
[1757572592254,3.50311111,223.27,223.23,0.03409305]
[1757572592454,3.50311111,223.26,223.23,0.03409305]
[1757572592757,7.27,223.32,223.23,0.03409305]
[1757572592960,7.27,223.3,223.23,0.03409305]
[1757572593156,7.27,223.28,223.23,0.03409305]
[1757572593353,3.5029287,223.27,223.23,0.03409305]
[1757572593652,7.27,223.25,223.23,0.03409305]
[1757572593854,7.27,223.32,223.23,0.03409305]
[1757572594159,7.27,223.3,223.23,0.03409305]
[1757572594359,7.27,223.28,223.23,0.03409305]
[1757572594557,3.50274383,223.27,223.23,0.03409305]
[1757572594759,7.27,223.25,223.23,0.03409305]
[1757572594955,7.27,223.32,223.23,0.03409305]
[1757572595163,7.27,223.3,223.23,0.03409305]
[1757572595363,7.27,223.28,223.23,0.03409305]
[1757572595659,7.27,223.26,223.23,0.03409305]
[1757572595962,7.27,223.32,223.23,0.03409305]
[1757572596161,7.27,223.3,223.23,0.03409305]
[1757572596353,7.27,223.28,223.23,0.03409305]
[1757572596657,3.50235991,223.27,223.23,0.03409305]
[1757572596858,7.27,223.32,223.23,0.03409305]
[1757572597059,6.96947474,223.31,223.23,0.03409305]
[1757572597359,14.23947474,223.3,223.23,0.03409305]
[1757572597559,7.27,223.28,223.23,0.03409305]
[1757572597759,3.50228883,223.27,223.23,0.03409305]
[1757572597961,2.5811024,223.33,223.23,0.03409305]
[1757572597962,7.27,223.32,223.23,0.03409305]
[1757572598262,7.27,223.3,223.23,0.03409305]
[1757572598566,7.27,223.28,223.23,0.03409305]
[1757572598853,7.27,223.26,223.23,0.03409305]
[1757572600061,7.27,223.24,223.23,0.03409305]
[1757572605961,10.77091758,223.24,223.16,2.04]
[1757572606161,7.27,223.28,223.16,2.04]
[1757572606364,2.5811024,223.29,223.16,2.04]
[1757572606365,7.27,223.26,223.16,2.04]
[1757572606565,7.27,223.24,223.14,3.71545534]
[1757572606766,7.27,223.22,223.12,3.71545534]
[1757572606969,7.27,223.2,223.12,3.71545534]
[1757572607265,7.27,223.2,223.15,0.02837239]
[1757572607867,7.27,223.18,223.15,0.02837239]
[1757572611968,3.49655483,223.17,223.15,0.02837239]
[1757572612270,7.27,223.16,223.15,0.02837239]
[1757572615069,2.5811024,223.24,223.15,0.02837239]
[1757572615273,7.27,223.21,223.15,0.02837239]
[1757572615575,7.27,223.21,223.14,2.04]
[1757572615970,7.27,223.25,223.16,0.03200784]
[1757572616170,7.27,223.23,223.16,0.03200784]
[1757572616371,3.49239223,223.22,223.16,0.03200784]
[1757572616671,7.27,223.25,223.16,0.03200784]
[1757572616971,7.27,223.23,223.16,0.03200784]
[1757572617171,3.49468711,223.22,223.16,0.03200784]
[1757572617475,7.27,223.23,223.16,0.03200784]
[1757572617775,7.04,223.21,223.16,0.03200784]
[1757572617972,7.04,223.25,223.16,0.03200784]
[1757572618169,7.04,223.23,223.16,0.03200784]
[1757572618476,3.4949103,223.22,223.16,0.03200784]
[1757572618777,7.04,223.25,223.16,0.03200784]
[1757572619074,7.04,223.23,223.16,0.03200784]
[1757572619275,3.4947952,223.22,223.16,0.03200784]
[1757572619471,7.04,223.25,223.17,2.06]
[1757572620075,7.04,223.25,223.19,0.03442346]
[1757572624084,301.04,223.32,223.19,2.09442346]
[1757572624279,7.04,223.28,223.19,2.09442346]
[1757572628088,3.49520589,223.27,223.19,2.09442346]
[1757572628287,7.04,223.28,223.19,2.09442346]
[1757572628586,3.49539955,223.27,223.19,2.09442346]
[1757572628782,7.04,223.28,223.19,2.09442346]
[1757572630486,7.04,223.28,223.19,3.74700529]
[1757572633688,7.04,223.28,223.2,1.65258183]
[1757572635588,0.77977951,223.33,223.23,1.65258183]
[1757572635785,10.53622718,223.32,223.23,3.71258183]
[1757572635991,7.04,223.3,223.23,3.71258183]
[1757572636191,7.04,223.34,223.25,0.03114042]
[1757572636495,7.04,223.32,223.25,0.03114042]
[1757572636793,3.49623543,223.31,223.25,0.03114042]
[1757572636995,7.04,223.34,223.25,0.03114042]
[1757572637198,7.04,223.32,223.25,0.03114042]
[1757572637395,3.49589901,223.31,223.25,0.03114042]
[1757572637594,7.04,223.34,223.25,0.03114042]
[1757572637899,7.04,223.32,223.25,0.03114042]